fUSD/lending_fUSD_20260324
["ID","MTS","AMOUNT","RATE_DAILY","PERIOD"]
[408848993,1774338823264,-1569.0,0.00045131,16]
[408848994,1774338823274,-150.0,0.0004516,120]
[408848995,1774338823284,-1569.0,0.00045201,16]
[408848996,1774338823294,-2735.451747,0.00045204,60]
[408848997,1774338823304,-2735.45174699,0.00045204,60]
[408848998,1774338823314,-743.4779064,0.00045205,120]
[408848999,1774338823325,-590.67,0.00045205,120]
[408849000,1774338823335,-1000.0,0.00045205,120]
[408849001,1774338823345,-705.66,0.00045205,120]
[408849002,1774338823355,-943.74,0.00045205,120]
[408849003,1774338823365,-500.0,0.00045205,120]
[408849004,1774338823375,-507.3,0.00045205,120]
[408849005,1774338823386,-568.39,0.00045205,120]
[408849006,1774338823398,-729.64,0.00045205,120]
[408849007,1774338823412,-639.9,0.00045205,120]
[408849008,1774338823422,-651.21,0.00045205,120]
[408849009,1774338823432,-500.0,0.00045205,120]
[408849010,1774338823442,-524.6,0.00045205,120]
[408849011,1774338823454,-978.66,0.00045205,120]
[408849012,1774338823465,-500.0,0.00045205,30]
[408849013,1774338823475,-1180.13,0.00045205,120]
[408849014,1774338823487,-500.0,0.00045205,120]
[408849015,1774338823497,-574.37,0.00045205,120]
[408849016,1774338823508,-1281.45,0.00045205,120]
[408849017,1774338823519,-1329.75,0.00045205,120]
[408849018,1774338823528,-500.0,0.00045205,120]
[408849019,1774338823539,-500.0,0.00045205,90]
[408849020,1774338823549,-880.66,0.00045205,5]
[408849021,1774338823559,-599.98,0.00045205,120]
[408849022,1774338823570,-651.22,0.00045205,120]
[408849023,1774338823580,-500.0,0.00045205,120]
[408849024,1774338823590,-539.9,0.00045205,120]
[408849025,1774338823601,-604.85,0.00045205,120]
[408849026,1774338823612,-1076.85,0.00045205,120]
[408849027,1774338823623,-766.13,0.00045205,120]
[408849028,1774338823635,-617.48,0.00045205,120]
[408849029,1774338823646,-500.0,0.00045205,120]
[408849030,1774338823679,-835.56,0.00045205,120]
[408849031,1774338823691,-792.41,0.00045205,120]
[408849032,1774338823701,-500.0,0.00045205,120]
[408849033,1774338823712,-1234.56,0.00045205,120]
[408849034,1774338823722,-890.18,0.00045205,120]
[408849035,1774338823734,-500.0,0.00045205,120]
[408849036,1774338823745,-1024.48,0.00045205,120]
[408849037,1774338823755,-500.0,0.00045205,120]
[408849038,1774338823765,-766.51,0.00045205,120]
[408849039,1774338823775,-677.14,0.00045205,120]
[408849040,1774338823785,-2135.18,0.00045205,120]
[408849041,1774338823795,-563.34,0.00045205,120]
[408849042,1774338823805,-1402.94,0.00045205,120]
[408849043,1774338823815,-761.77,0.00045205,120]
[408849044,1774338823824,-1465.28,0.00045205,120]
[408849045,1774338823835,-500.0,0.00045205,120]
[408849046,1774338823844,-500.0,0.00045205,120]
[408849047,1774338823854,-598.21,0.00045205,120]
[408849048,1774338823864,-500.0,0.00045205,120]
[408849049,1774338823874,-1412.93,0.00045205,120]
[408849050,1774338823884,-500.0,0.00045205,120]
[408849051,1774338823894,-846.4,0.00045205,120]
[408849052,1774338823904,-500.0,0.00045205,120]
[408849053,1774338823914,-804.53,0.00045205,120]
[408849054,1774338823925,-862.09,0.00045205,120]
[408849055,1774338823935,-967.16,0.00045205,120]
[408849056,1774338823945,-649.68,0.00045205,120]
[408849057,1774338823955,-897.41,0.00045205,120]
[408849058,1774338823966,-1647.3,0.00045205,120]
[408849059,1774338823976,-500.0,0.00045205,120]
[408849060,1774338823986,-932.54,0.00045205,120]
[408849061,1774338823996,-1817.92,0.00045205,120]
[408849062,1774338824006,-500.0,0.00045205,120]
[408849063,1774338824016,-500.0,0.00045205,120]
[408849064,1774338824026,-1328.91,0.00045205,120]
[408849065,1774338824036,-1294.19,0.00045205,120]
[408849066,1774338824045,-500.0,0.00045205,120]
[408849067,1774338824055,-3681.23,0.00045205,120]
[408849068,1774338824065,-500.0,0.00045205,120]
[408849069,1774338824076,-500.0,0.00045205,120]
[408849070,1774338824086,-644.74,0.00045205,120]
[408849071,1774338824097,-688.63,0.00045205,120]
[408849072,1774338824442,-355.02785752,0.00045205,120]
[408849073,1774338824458,-572.14,0.00045205,120]
[408849074,1774338824467,-500.0,0.00045205,120]
[408849075,1774338824476,-1109.47,0.00045205,120]
[408849076,1774338824488,-500.0,0.00045205,120]
[408849077,1774338824498,-1361.64,0.00045205,120]
[408849078,1774338824508,-1113.98,0.00045205,120]
[408849079,1774338824518,-500.0,0.00045205,120]
[408849080,1774338824527,-804.84,0.00045205,120]
[408849081,1774338824537,-587.8,0.00045205,120]
[408849082,1774338824548,-895.35,0.00045205,120]
[408849083,1774338824558,-500.0,0.00045205,120]
[408849084,1774338824568,-640.6,0.00045205,120]
[408849085,1774338824579,-1353.62,0.00045205,120]
[408849086,1774338824589,-500.0,0.00045205,120]
[408849087,1774338824598,-663.05,0.00045205,120]
[408849088,1774338824608,-500.0,0.00045205,120]
[408849089,1774338824618,-2022.99,0.00045205,120]
[408849090,1774338824627,-208.11000998,0.00045205,120]
[408849091,1774338824638,-993.61,0.00045205,120]
[408849092,1774338824648,-500.0,0.00045205,120]
[408849093,1774338824657,-526.3,0.00045205,120]
[408849094,1774338824667,-803.74,0.00045205,120]
[408849095,1774338824677,-500.0,0.00045205,120]
[408849096,1774338824688,-593.39,0.00045205,120]
[408849097,1774338824697,-773.48,0.00045205,120]
[408849098,1774338824707,-500.0,0.00045205,120]
[408849099,1774338824717,-500.0,0.00045205,120]
[408849100,1774338824727,-1169.17,0.00045205,120]
[408849101,1774338824736,-453.29477224,0.00045205,120]
[408849102,1774338824746,-1339.98,0.00045205,120]
[408849103,1774338824755,-500.0,0.00045205,120]
[408849104,1774338824765,-599.34,0.00045205,120]
[408849105,1774338824774,-1698.32,0.00045205,120]
[408849106,1774338824783,-551.15,0.00045205,120]
[408849107,1774338824793,-1450.66,0.00045205,120]
[408849108,1774338824803,-818.03,0.00045205,120]
[408849109,1774338824813,-620.94,0.00045205,2]
[408849110,1774338824823,-500.0,0.00045205,120]
[408849111,1774338824833,-500.0,0.00045205,120]
[408849112,1774338824842,-500.0,0.00045205,120]
[408849113,1774338824852,-1515.34,0.00045205,120]
[408849114,1774338824861,-4192.59,0.00045205,120]
[408849115,1774338824872,-2475.9,0.00045205,120]
[408849116,1774338824882,-500.0,0.00045205,120]
[408849117,1774338824893,-500.0,0.00045205,120]
[408849118,1774338824904,-2035.37,0.00045205,120]
[408849119,1774338824915,-311.61577462,0.00045205,120]
[408849120,1774338824926,-1009.33,0.00045205,120]
[408849121,1774338824936,-857.75,0.00045205,120]
[408849122,1774338824946,-944.17,0.00045205,120]
[408849123,1774338824956,-1317.86,0.00045205,30]
[408849124,1774338824965,-826.35,0.00045205,120]
[408849125,1774338824974,-198.24926856,0.00045205,120]
[408849126,1774338824984,-1144.87,0.00045205,120]
[408849127,1774338824994,-588.23,0.00045205,120]
[408849128,1774338825003,-500.0,0.00045205,120]
[408849129,1774338825013,-500.0,0.00045205,120]
[408849130,1774338825022,-895.15,0.00045205,120]
[408849131,1774338825032,-1197.62,0.00045205,120]
[408849132,1774338825041,-1494.6,0.00045205,120]
[408849133,1774338825054,-1086.62,0.00045205,120]
[408849134,1774338825064,-552.04611869,0.00045205,120]
[408849135,1774338825073,-500.0,0.00045205,120]
[408849136,1774338825084,-500.0,0.00045205,120]
[408849137,1774338825094,-946.8,0.00045205,120]
[408849138,1774338825103,-500.0,0.00045205,120]
[408849139,1774338825113,-713.74,0.00045205,120]
[408849140,1774338825123,-6072.1,0.00045205,120]
[408849141,1774338825134,-826.7,0.00045205,120]
[408849142,1774338825144,-1989.66,0.00045205,30]
[408849143,1774338825155,-552.86,0.00045205,120]
[408849144,1774338825165,-500.0,0.00045205,120]
[408849145,1774338825174,-926.79,0.00045205,120]
[408849146,1774338825184,-2329.55,0.00045205,120]
[408849147,1774338825194,-500.0,0.00045205,120]
[408849148,1774338825203,-847.68,0.00045205,120]
[408849149,1774338825213,-1646.81,0.00045205,120]
[408849150,1774338825222,-1090.68,0.00045205,120]
[408849151,1774338825232,-1885.93,0.00045205,120]
[408849152,1774338825241,-741.6,0.00045205,120]
[408849153,1774338825251,-500.0,0.00045205,120]
[408849154,1774338825260,-727.16,0.00045205,120]
[408849155,1774338825270,-712.06,0.00045205,120]
[408849156,1774338825280,-2107.35,0.00045205,120]
[408849157,1774338825291,-500.0,0.00045205,120]
[408849158,1774338825301,-617.58,0.00045205,120]
[408849159,1774338825312,-2133.23,0.00045205,120]
[408849160,1774338825322,-5833.33,0.00045205,120]
[408849161,1774338825332,-1039.39,0.00045205,120]
[408849162,1774338825342,-2468.56,0.00045205,120]
[408849163,1774338825351,-1366.12,0.00045205,120]
[408849164,1774338825360,-500.0,0.00045205,120]
[408849165,1774338825369,-1016.32,0.00045205,120]
[408849166,1774338825379,-784.59,0.00045205,120]
[408849167,1774338825388,-1478.69,0.00045205,120]
[408849168,1774338825398,-1259.9,0.00045205,120]
[408849169,1774338825410,-1107.99,0.00045205,120]
[408849170,1774338825419,-1114.05,0.00045205,120]
[408849171,1774338825428,-1519.93,0.00045205,120]
[408849172,1774338825437,-646.06,0.00045205,120]
[408849173,1774338825447,-1266.58,0.00045205,120]
[408849174,1774338825457,-605.65607665,0.00045205,120]
[408849175,1774338825469,-1009.25,0.00045205,120]
[408849176,1774338825478,-707.37,0.00045205,120]
[408849177,1774338825491,-1156.03,0.00045205,14]
[408849178,1774338825502,-999.55,0.00045205,120]
[408849179,1774338825512,-970.63,0.00045205,120]
[408849180,1774338825522,-650.62,0.00045205,30]
[408849181,1774338825532,-725.53,0.00045205,120]
[408849182,1774338825541,-500.0,0.00045205,120]
[408849183,1774338825550,-1014.92,0.00045205,120]
[408849184,1774338825560,-2689.33,0.00045205,120]
[408849185,1774338825569,-500.0,0.00045205,120]
[408849186,1774338825578,-500.0,0.00045205,120]
[408849187,1774338825587,-500.0,0.00045205,120]
[408849188,1774338825596,-1544.85,0.00045205,120]
[408849189,1774338825606,-500.0,0.00045205,120]
[408849190,1774338825615,-500.0,0.00045205,120]
[408849191,1774338825624,-1269.14,0.00045205,120]
[408849192,1774338825634,-500.0,0.00045205,120]
[408849193,1774338825643,-665.15,0.00045205,120]
[408849194,1774338825653,-680.42,0.00045205,120]
[408849195,1774338825663,-500.0,0.00045205,120]
[408849196,1774338825673,-500.0,0.00045205,120]
[408849197,1774338825683,-500.0,0.00045205,120]
[408849198,1774338825692,-1769.26,0.00045205,120]
[408849199,1774338825702,-512.42,0.00045205,120]
[408849200,1774338825712,-500.0,0.00045205,120]
[408849201,1774338825722,-383.473993,0.00045205,120]
[408849202,1774338825732,-500.0,0.00045205,120]
[408849203,1774338825741,-1705.77,0.00045205,120]
[408849204,1774338825751,-978.43,0.00045205,120]
[408849205,1774338825760,-539.43116037,0.00045205,120]
[408849206,1774338825770,-542.82425999,0.00045205,120]
[408849207,1774338825779,-500.0,0.00045205,120]
[408849208,1774338825788,-500.0,0.00045205,120]
[408849209,1774338825798,-1215.44,0.00045205,120]
[408849210,1774338825807,-500.0,0.00045205,120]
[408849211,1774338825816,-1046.27,0.00045205,120]
[408849212,1774338825826,-500.0,0.00045205,120]
[408849213,1774338825838,-500.0,0.00045205,120]
[408849214,1774338825848,-1613.72,0.00045205,120]
[408849215,1774338825857,-1897.96,0.00045205,120]
[408849216,1774338825868,-770.58,0.00045205,120]
[408849217,1774338825879,-1960.33,0.00045205,120]
[408849218,1774338825891,-3056.27,0.00045205,120]
[408849219,1774338825900,-1228.99,0.00045205,120]
[408849220,1774338825910,-769.44,0.00045205,120]
[408849221,1774338825919,-680.28,0.00045205,120]
[408849222,1774338825928,-500.0,0.00045205,120]
[408849223,1774338825936,-500.0,0.00045205,120]
[408849224,1774338825945,-500.0,0.00045205,120]
[408849225,1774338825954,-500.0,0.00045205,120]
[408849226,1774338825965,-1078.9,0.00045205,120]
[408849227,1774338825974,-1780.32,0.00045205,120]
[408849228,1774338825984,-1099.3,0.00045205,120]
[408849229,1774338825995,-699.82,0.00045205,120]
[408849230,1774338826004,-855.78,0.00045205,120]
[408849231,1774338826015,-759.17,0.00045205,120]
[408849232,1774338826025,-931.09,0.00045205,120]
[408849233,1774338826037,-815.17,0.00045205,120]
[408849234,1774338826047,-500.0,0.00045205,120]
[408849235,1774338826056,-500.0,0.00045205,120]
[408849236,1774338826066,-656.8,0.00045205,120]
[408849237,1774338826075,-614.51,0.00045205,120]
[408849238,1774338826085,-671.25,0.00045205,120]
[408849239,1774338826095,-1323.85,0.00045205,7]
[408849240,1774338826106,-500.0,0.00045205,14]
[408849241,1774338826115,-500.0,0.00045205,120]
[408849242,1774338826125,-984.57,0.00045205,120]
[408849243,1774338826135,-500.0,0.00045205,120]
[408849244,1774338826145,-500.0,0.00045205,120]
[408849245,1774338826155,-729.45,0.00045205,120]
[408849246,1774338826164,-926.4,0.00045205,120]
[408849247,1774338826175,-1291.11,0.00045205,120]
[408849248,1774338826185,-560.4,0.00045205,120]
[408849249,1774338826195,-617.21,0.00045205,120]
[408849250,1774338826204,-1726.06,0.00045205,120]
[408849251,1774338826215,-500.0,0.00045205,120]
[408849252,1774338826225,-500.0,0.00045205,120]
[408849253,1774338826236,-1356.13,0.00045205,120]
[408849254,1774338826247,-801.87,0.00045205,120]
[408849255,1774338826256,-821.12,0.00045205,120]
[408849256,1774338826266,-866.85,0.00045205,120]
[408849257,1774338826275,-500.0,0.00045205,120]
[408849258,1774338826284,-500.0,0.00045205,120]
[408849259,1774338826295,-2922.62,0.00045205,60]
[408849260,1774338826304,-2859.83,0.00045205,120]
[408849261,1774338826316,-665.38,0.00045205,120]
[408849262,1774338826326,-644.49,0.00045205,120]
[408849263,1774338826336,-4166.66,0.00045205,120]
[408849264,1774338826345,-719.59,0.00045205,120]
[408849265,1774338826353,-679.57,0.00045205,120]
[408849266,1774338826362,-599.93,0.00045205,120]
[408849267,1774338826372,-500.0,0.00045205,120]
[408849268,1774338826381,-1432.07,0.00045205,120]
[408849269,1774338826391,-730.01,0.00045205,120]
[408849270,1774338826400,-883.47,0.00045205,120]
[408849271,1774338826412,-508.87,0.00045205,120]
[408849272,1774338826421,-500.0,0.00045205,120]
[408849273,1774338826430,-759.73,0.00045205,120]
[408849274,1774338826439,-1171.93,0.00045205,120]
[408849275,1774338826448,-892.78,0.00045205,120]
[408849276,1774338826457,-749.74,0.00045205,120]
[408849277,1774338826466,-978.13,0.00045205,120]
[408849278,1774338826475,-674.49,0.00045205,120]
[408849279,1774338826487,-1973.42,0.00045205,120]
[408849280,1774338826496,-1355.12,0.00045205,120]
[408849281,1774338826506,-1044.01,0.00045205,120]
[408849282,1774338826515,-500.0,0.00045205,120]
[408849283,1774338826524,-786.73,0.00045205,120]
[408849284,1774338826533,-229.69992579,0.00045205,120]
[408849285,1774338826543,-276.22929329,0.00045205,120]
[408849286,1774338826553,-1476.03,0.00045205,120]
[408849287,1774338826564,-647.98,0.00045205,120]
[408849288,1774338826573,-947.33,0.00045205,120]
[408849289,1774338826583,-924.76,0.00045205,120]
[408849290,1774338826593,-590.04,0.00045205,120]
[408849291,1774338826603,-500.0,0.00045205,120]
[408849292,1774338826612,-1633.92,0.00045205,120]
[408849293,1774338826622,-1295.04,0.00045205,120]
[408849294,1774338826631,-1441.35,0.00045205,60]
[408849295,1774338826641,-588.11,0.00045205,120]
[408849296,1774338826650,-1951.73,0.00045205,120]
[408849297,1774338826660,-213.36,0.00045205,120]
[408849298,1774338826670,-2782.79,0.00045205,120]
[408849299,1774338826680,-605.44,0.00045205,120]
[408849300,1774338826690,-894.69,0.00045205,120]
[408849301,1774338826699,-500.0,0.00045205,120]
[408849302,1774338826708,-525.27,0.00045205,120]
[408849303,1774338826719,-500.0,0.00045205,120]
[408849304,1774338826729,-1730.58,0.00045205,120]
[408849305,1774338826739,-517.76,0.00045205,120]
[408849306,1774338826748,-500.0,0.00045205,120]
[408849307,1774338826758,-1269.84,0.00045205,120]
[408849308,1774338826768,-1493.36,0.00045205,120]
[408849309,1774338826777,-1536.15,0.00045205,120]
[408849310,1774338826786,-500.0,0.00045205,120]
[408849311,1774338826969,-600.11,0.00045205,120]
[408849312,1774338826980,-1551.97,0.00045205,120]
[408849313,1774338826990,-632.12,0.00045205,120]
[408849314,1774338826999,-724.43,0.00045205,120]
[408849315,1774338827008,-2431.7,0.00045205,120]
[408849316,1774338827017,-1747.14,0.00045205,120]
[408849317,1774338827027,-1632.69,0.00045205,120]
[408849318,1774338827036,-1186.56,0.00045205,120]
[408849319,1774338827046,-1598.01,0.00045205,120]
[408849320,1774338827055,-500.0,0.00045205,120]
[408849321,1774338827064,-500.0,0.00045205,120]
[408849322,1774338827074,-517.15,0.00045205,120]
[408849323,1774338827084,-1075.02,0.00045205,120]
[408849324,1774338827093,-1616.03,0.00045205,120]
[408849325,1774338827103,-500.0,0.00045205,120]
[408849326,1774338827112,-161.66579,0.00045205,120]
[408849327,1774338827121,-1428.85,0.00045205,120]
[408849328,1774338827130,-500.0,0.00045205,120]
[408849329,1774338827139,-500.0,0.00045205,120]
[408849330,1774338827148,-665.63,0.00045205,120]
[408849331,1774338827157,-866.03,0.00045205,120]
[408849332,1774338827166,-1926.05,0.00045205,120]
[408849333,1774338827175,-2687.41,0.00045205,120]
[408849334,1774338827184,-728.07,0.00045205,120]
[408849335,1774338827193,-638.16,0.00045205,120]
[408849336,1774338827202,-500.0,0.00045205,120]
[408849337,1774338827211,-604.38,0.00045205,120]
[408849338,1774338827221,-1493.48,0.00045205,30]
[408849339,1774338827230,-801.43,0.00045205,120]
[408849340,1774338827240,-752.4,0.00045205,120]
[408849341,1774338827249,-552.47,0.00045205,120]
[408849342,1774338827259,-500.0,0.00045205,120]
[408849343,1774338827268,-995.77,0.00045205,120]
[408849344,1774338827278,-500.0,0.00045205,120]
[408849345,1774338827287,-878.89,0.00045205,120]
[408849346,1774338827296,-2173.76,0.00045205,120]
[408849347,1774338827305,-1298.61,0.00045205,120]
[408849348,1774338827315,-1791.61,0.00045205,120]
[408849349,1774338827324,-500.0,0.00045205,120]
[408849350,1774338827334,-1260.51,0.00045205,120]
[408849351,1774338827343,-663.27,0.00045205,120]
[408849352,1774338827352,-500.0,0.00045205,120]
[408849353,1774338827361,-1454.94,0.00045205,120]
[408849354,1774338827371,-500.0,0.00045205,120]
[408849355,1774338827380,-1108.88,0.00045205,120]
[408849356,1774338827390,-1258.26,0.00045205,120]
[408849357,1774338827400,-387.93612366,0.00045205,120]
[408849358,1774338827414,-500.0,0.00045205,120]
[408849359,1774338827423,-631.57,0.00045205,120]
[408849360,1774338827432,-203.180615,0.00045205,120]
[408849361,1774338827442,-1791.18,0.00045205,120]
[408849362,1774338827453,-514.08,0.00045205,120]
[408849363,1774338827463,-585.76,0.00045205,120]
[408849364,1774338827472,-1447.52,0.00045205,120]
[408849365,1774338827483,-1601.87,0.00045205,120]
[408849366,1774338827493,-500.0,0.00045205,120]
[408849367,1774338827502,-634.53,0.00045205,120]
[408849368,1774338827512,-500.0,0.00045205,120]
[408849369,1774338827521,-500.0,0.00045205,120]
[408849370,1774338827531,-514.43,0.00045205,120]
[408849371,1774338827541,-500.0,0.00045205,120]
[408849372,1774338827550,-1530.3,0.00045205,120]
[408849373,1774338827559,-1437.77,0.00045205,120]
[408849374,1774338827569,-735.64,0.00045205,120]
[408849375,1774338827578,-500.0,0.00045205,120]
[408849376,1774338827588,-798.73,0.00045205,120]
[408849377,1774338827597,-500.0,0.00045205,120]
[408849378,1774338827607,-2864.08,0.00045205,120]
[408849379,1774338827616,-534.31,0.00045205,120]
[408849380,1774338827626,-500.0,0.00045205,120]
[408849381,1774338827636,-800.61,0.00045205,120]
[408849382,1774338827646,-500.0,0.00045205,120]
[408849383,1774338827656,-500.0,0.00045205,120]
[408849384,1774338827665,-1519.14,0.00045205,120]
[408849385,1774338827675,-579.61,0.00045205,120]
[408849386,1774338827684,-971.22,0.00045205,120]
[408849387,1774338827694,-2175.73,0.00045205,120]
[408849388,1774338827704,-651.63,0.00045205,120]
[408849389,1774338827715,-500.0,0.00045205,120]
[408849390,1774338827724,-769.19,0.00045205,120]
[408849391,1774338827733,-666.77,0.00045205,120]
[408849392,1774338827743,-1046.52,0.00045205,120]
[408849393,1774338827751,-500.0,0.00045205,120]
[408849394,1774338827761,-1404.43,0.00045205,120]
[408849395,1774338827771,-547.19,0.00045205,120]
[408849396,1774338827781,-613.47,0.00045205,120]
[408849397,1774338827791,-664.14,0.00045205,120]
[408849398,1774338827800,-500.55,0.00045205,120]
[408849399,1774338827810,-1409.42,0.00045205,120]
[408849400,1774338827819,-418.72637847,0.00045205,120]
[408849401,1774338827828,-1958.04,0.00045205,120]
[408849402,1774338827838,-500.0,0.00045205,120]
[408849403,1774338827847,-845.98,0.00045205,120]
[408849404,1774338827858,-788.97,0.00045205,120]
[408849405,1774338827867,-979.08,0.00045205,120]
[408849406,1774338827876,-2271.51,0.00045205,120]
[408849407,1774338827886,-798.9,0.00045205,120]
[408849408,1774338827895,-785.73,0.00045205,120]
[408849409,1774338827906,-1319.48,0.00045205,120]
[408849410,1774338827916,-898.9,0.00045205,120]
[408849411,1774338827926,-1026.81,0.00045205,120]
[408849412,1774338827937,-896.49,0.00045205,2]
[408849413,1774338827947,-591.09,0.00045205,120]
[408849414,1774338827956,-1571.69,0.00045205,120]
[408849415,1774338827968,-951.54,0.00045205,120]
[408849416,1774338827978,-500.0,0.00045205,120]
[408849417,1774338827987,-1576.67,0.00045205,120]
[408849418,1774338827996,-1272.35589275,0.00045205,120]
[408849419,1774338828005,-533.43,0.00045205,120]
[408849420,1774338828014,-500.0,0.00045205,120]
[408849421,1774338828024,-1797.77,0.00045205,120]
[408849422,1774338828032,-641.68,0.00045205,30]
[408849423,1774338828042,-908.05,0.00045205,120]
[408849424,1774338828051,-500.0,0.00045205,120]
[408849425,1774338828062,-978.03,0.00045205,120]
[408849426,1774338828071,-500.0,0.00045205,120]
[408849427,1774338828080,-500.0,0.00045205,120]
[408849428,1774338828089,-1254.4,0.00045205,120]
[408849429,1774338828099,-500.0,0.00045205,120]
[408849430,1774338828108,-890.53,0.00045205,120]
[408849431,1774338828117,-794.03,0.00045205,120]
[408849432,1774338828127,-500.0,0.00045205,120]
[408849433,1774338828136,-588.33,0.00045205,120]
[408849434,1774338828146,-2073.54,0.00045205,120]
[408849435,1774338828155,-954.83,0.00045205,120]
[408849436,1774338828164,-642.99,0.00045205,120]
[408849437,1774338828174,-945.89,0.00045205,120]
[408849438,1774338828183,-2204.1,0.00045205,120]
[408849439,1774338828193,-593.35905848,0.00045205,120]
[408849440,1774338828203,-1685.9,0.00045205,120]
[408849441,1774338828213,-610.5,0.00045205,120]
[408849442,1774338828222,-2030.17,0.00045205,30]
[408849443,1774338828232,-2121.36,0.00045205,120]
[408849444,1774338828242,-976.45,0.00045205,120]
[408849445,1774338828251,-659.65,0.00045205,120]
[408849446,1774338828261,-2554.76,0.00045205,120]
[408849447,1774338828270,-1990.0,0.00045205,120]
[408849448,1774338828280,-534.01,0.00045205,120]
[408849449,1774338828289,-1204.77,0.00045205,120]
[408849450,1774338828299,-1000.85,0.00045205,120]
[408849451,1774338828308,-618.78,0.00045205,120]
[408849452,1774338828317,-500.0,0.00045205,30]
[408849453,1774338828327,-1087.07,0.00045205,120]
[408849454,1774338828337,-500.0,0.00045205,120]
[408849455,1774338828348,-758.91,0.00045205,120]
[408849456,1774338828358,-861.35,0.00045205,120]
[408849457,1774338828368,-639.53,0.00045205,120]
[408849458,1774338828379,-964.47,0.00045205,120]
[408849459,1774338828390,-1790.64,0.00045205,120]
[408849460,1774338828400,-817.12,0.00045205,120]
[408849461,1774338828410,-500.0,0.00045205,120]
[408849462,1774338828419,-1048.96,0.00045205,120]
[408849463,1774338828428,-500.0,0.00045205,120]
[408849464,1774338828438,-617.31,0.00045205,120]
[408849465,1774338828447,-1377.48,0.00045205,120]
[408849466,1774338828459,-1373.09,0.00045205,120]
[408849467,1774338828468,-950.57,0.00045205,120]
[408849468,1774338828480,-500.0,0.00045205,120]
[408849469,1774338828489,-1252.8,0.00045205,120]
[408849470,1774338828498,-500.0,0.00045205,120]
[408849471,1774338828507,-3697.72,0.00045205,2]
[408849472,1774338828517,-500.0,0.00045205,120]
[408849473,1774338828526,-1527.96,0.00045205,120]
[408849474,1774338828535,-589.22,0.00045205,120]
[408849475,1774338828544,-658.92,0.00045205,120]
[408849476,1774338828553,-541.68,0.00045205,120]
[408849477,1774338828568,-1047.63,0.00045205,120]
[408849478,1774338828588,-641.73,0.00045205,120]
[408849479,1774338828599,-570.14,0.00045205,120]
[408849480,1774338828608,-500.0,0.00045205,120]
[408849481,1774338828619,-516.11,0.00045205,120]
[408849482,1774338828630,-1329.81,0.00045205,120]
[408849483,1774338828639,-2000.22,0.00045205,120]
[408849484,1774338828649,-1988.85,0.00045205,120]
[408849485,1774338828659,-2821.24,0.00045205,120]
[408849486,1774338828668,-627.92,0.00045205,120]
[408849487,1774338828677,-819.97,0.00045205,120]
[408849488,1774338828688,-1024.12,0.00045205,120]
[408849489,1774338828697,-1947.88,0.00045205,120]
[408849490,1774338828705,-500.0,0.00045205,120]
[408849491,1774338828716,-810.31,0.00045205,120]
[408849492,1774338828725,-1590.35,0.00045205,120]